[Event "Live Chess"]
[Site "Chess.com"]
[Date "2023.05.21"]
[Round "-"]
[White "Pablo_dmp"]
[Black "Baturin_Yevgeniy"]
[Result "0-1"]
[WhiteElo "1863"]
[BlackElo "1813"]
[TimeControl "300"]
[EndTime "17:42:33 PDT"]
[Termination "Baturin_Yevgeniy won on time"]

1. e4 {[%clk 0:04:58.9]} 1... e6 {[%clk 0:04:55.9]} 2. Nf3 {[%clk 0:04:55.6]}
2... d5 {[%clk 0:04:53.4]} 3. Nc3 {[%clk 0:04:53.4]} 3... Nf6 {[%clk 0:04:50.4]}
4. e5 {[%clk 0:04:51.9]} 4... Nfd7 {[%clk 0:04:47.6]} 5. d4 {[%clk 0:04:50.7]}
5... c5 {[%clk 0:04:45.5]} 6. dxc5 {[%clk 0:04:49.9]} 6... Bxc5 {[%clk
0:04:42.4]} 7. Bd3 {[%clk 0:04:43.8]} 7... Nc6 {[%clk 0:04:30.1]} 8. Qe2 {[%clk
0:04:41.7]} 8... Nd4 {[%clk 0:04:08.3]} 9. Nxd4 {[%clk 0:04:34.3]} 9... Bxd4
{[%clk 0:04:08.2]} 10. f4 {[%clk 0:04:30.8]} 10... Bxc3+ {[%clk 0:03:09.6]} 11.
bxc3 {[%clk 0:04:30.7]} 11... Qc7 {[%clk 0:02:46.3]} 12. Bd2 {[%clk 0:04:03.9]}
12... O-O {[%clk 0:02:05.7]} 13. O-O {[%clk 0:03:58.4]} 13... b6 {[%clk
0:01:57.5]} 14. Rf3 {[%clk 0:03:55.6]} 14... Bb7 {[%clk 0:01:52.3]} 15. Bxh7+
{[%clk 0:03:51.1]} 15... Kxh7 {[%clk 0:01:42.6]} 16. Rh3+ {[%clk 0:03:50.1]}
16... Kg8 {[%clk 0:01:41]} 17. Qh5 {[%clk 0:03:48.5]} 17... f5 {[%clk
0:01:27.8]} 18. Qh7+ {[%clk 0:03:14.6]} 18... Kf7 {[%clk 0:01:26.4]} 19. Rh6
{[%clk 0:03:03.4]} 19... Ke7 {[%clk 0:00:59.4]} 20. Qxg7+ {[%clk 0:02:59.1]}
20... Rf7 {[%clk 0:00:57.6]} 21. Qg5+ {[%clk 0:02:55.9]} 21... Ke8 {[%clk
0:00:56]} 22. Rxe6+ {[%clk 0:02:52.9]} 22... Kf8 {[%clk 0:00:54.2]} 23. Qh6+
{[%clk 0:02:47.4]} 23... Rg7 {[%clk 0:00:48.1]} 24. Qh8+ {[%clk 0:02:44.6]}
24... Kf7 {[%clk 0:00:44.4]} 25. Qh6 {[%clk 0:02:36.1]} 25... Qc5+ {[%clk
0:00:42.1]} 26. Kh1 {[%clk 0:02:29.8]} 26... Rag8 {[%clk 0:00:41.3]} 27. Rg1
{[%clk 0:01:40.4]} 27... Qf2 {[%clk 0:00:38]} 28. Rf6+ {[%clk 0:01:09.2]} 28...
Ke8 {[%clk 0:00:33.1]} 29. Re6+ {[%clk 0:01:06.5]} 29... Kd8 {[%clk 0:00:31.7]}
30. Rd6 {[%clk 0:00:45]} 30... Rxg2 {[%clk 0:00:28.3]} 31. Qf6+ {[%clk
0:00:37.1]} 31... Kc7 {[%clk 0:00:26]} 32. Rxd7+ {[%clk 0:00:31.8]} 32... Kxd7
{[%clk 0:00:25.9]} 33. Qd6+ {[%clk 0:00:16.8]} 33... Kc8 {[%clk 0:00:21.9]} 34.
Qe6+ {[%clk 0:00:14.3]} 34... Kb8 {[%clk 0:00:18.8]} 35. Qd6+ {[%clk 0:00:13.1]}
35... Ka8 {[%clk 0:00:16]} 36. Rd1 {[%clk 0:00:02.3]} 36... Rg1+ {[%clk
0:00:11.7]} 0-1

[Event "Live Chess"]
[Site "Chess.com"]
[Date "2023.05.21"]
[Round "-"]
[White "Conradical12"]
[Black "WelshTiger"]
[Result "0-1"]
[WhiteElo "1634"]
[BlackElo "2350"]
[TimeControl "300"]
[EndTime "17:42:39 PDT"]
[Termination "WelshTiger won by resignation"]

1. e4 {[%clk 0:04:52.5]} 1... c5 {[%clk 0:04:57.5]} 2. Nc3 {[%clk 0:04:50.2]}
2... a6 {[%clk 0:04:54.7]} 3. a4 {[%clk 0:04:48.2]} 3... Nc6 {[%clk 0:04:49.8]}
4. Nf3 {[%clk 0:04:44.4]} 4... d6 {[%clk 0:04:47.7]} 5. Bc4 {[%clk 0:04:41.6]}
5... e6 {[%clk 0:04:46.3]} 6. d4 {[%clk 0:04:39]} 6... cxd4 {[%clk 0:04:43.6]}
7. Nxd4 {[%clk 0:04:37]} 7... Nf6 {[%clk 0:04:42.9]} 8. O-O {[%clk 0:04:34.4]}
8... Be7 {[%clk 0:04:41.4]} 9. f4 {[%clk 0:04:33.4]} 9... Qc7 {[%clk 0:04:31.9]}
10. Be3 {[%clk 0:04:29]} 10... O-O {[%clk 0:04:12.8]} 11. e5 {[%clk 0:04:26.9]}
11... dxe5 {[%clk 0:04:09.5]} 12. fxe5 {[%clk 0:04:25]} 12... Nxe5 {[%clk
0:04:07.4]} 13. Bf4 {[%clk 0:04:19.7]} 13... Qxc4 {[%clk 0:04:05.5]} 14. Bxe5
{[%clk 0:04:18.9]} 14... b6 {[%clk 0:03:47]} 15. Qf3 {[%clk 0:04:15.9]} 15...
Ra7 {[%clk 0:03:46.3]} 16. Qg3 {[%clk 0:04:13.3]} 16... Kh8 {[%clk 0:03:42.4]}
17. Qh4 {[%clk 0:04:01.3]} 17... Rd7 {[%clk 0:03:31]} 18. Bxf6 {[%clk
0:03:58.4]} 18... Bxf6 {[%clk 0:03:29.8]} 19. Rxf6 {[%clk 0:03:55.9]} 19... Rxd4
{[%clk 0:03:28.8]} 20. Rxe6 {[%clk 0:03:40.6]} 20... Rxh4 {[%clk 0:03:20.9]} 0-1

[Event "Live Chess"]
[Site "Chess.com"]
[Date "2023.05.21"]
[Round "-"]
[White "Long1968"]
[Black "Doge_Dandolo"]
[Result "1-0"]
[WhiteElo "1112"]
[BlackElo "1945"]
[TimeControl "300"]
[EndTime "17:43:05 PDT"]
[Termination "Long1968 won by checkmate"]

1. e4 {[%clk 0:04:56]} 1... c6 {[%clk 0:04:58.6]} 2. d4 {[%clk 0:04:53.9]} 2...
d5 {[%clk 0:04:58.2]} 3. e5 {[%clk 0:04:52]} 3... Bf5 {[%clk 0:04:56.9]} 4. Bd3
{[%clk 0:04:49.7]} 4... Bxd3 {[%clk 0:04:55.4]} 5. Qxd3 {[%clk 0:04:47.8]} 5...
Qa5+ {[%clk 0:04:54.8]} 6. c3 {[%clk 0:04:45.5]} 6... Qa6 {[%clk 0:04:52.3]} 7.
Ke2 {[%clk 0:04:35.4]} 7... e6 {[%clk 0:04:50.1]} 8. Nf3 {[%clk 0:04:30]} 8...
c5 {[%clk 0:04:45.5]} 9. Be3 {[%clk 0:04:21.7]} 9... Nh6 {[%clk 0:04:19.7]} 10.
dxc5 {[%clk 0:04:12.3]} 10... Nf5 {[%clk 0:04:18]} 11. b4 {[%clk 0:03:55.5]}
11... Nc6 {[%clk 0:04:07.1]} 12. b5 {[%clk 0:03:40.7]} 12... Qa5 {[%clk
0:03:55.3]} 13. bxc6 {[%clk 0:03:34.6]} 13... bxc6 {[%clk 0:03:53.5]} 14. Nbd2
{[%clk 0:03:27]} 14... Nxe3 {[%clk 0:03:51.4]} 15. fxe3 {[%clk 0:03:19.2]} 15...
Bxc5 {[%clk 0:03:47.2]} 16. Nb3 {[%clk 0:03:14.8]} 16... Qb6 {[%clk 0:03:43.5]}
17. Nxc5 {[%clk 0:03:12.3]} 17... Qxc5 {[%clk 0:03:42.5]} 18. Qd4 {[%clk
0:03:06]} 18... Qe7 {[%clk 0:03:39.2]} 19. Qb4 {[%clk 0:03:00.2]} 19... Qc7
{[%clk 0:03:36]} 20. Rab1 {[%clk 0:02:56.2]} 20... Kd7 {[%clk 0:03:24.5]} 21.
Qb7 {[%clk 0:02:51.5]} 21... Rhb8 {[%clk 0:03:22.5]} 22. Qxc7+ {[%clk
0:02:44.8]} 22... Kxc7 {[%clk 0:03:20]} 23. Rb3 {[%clk 0:02:38.7]} 23... Rxb3
{[%clk 0:03:17.3]} 24. axb3 {[%clk 0:02:36.8]} 24... Rb8 {[%clk 0:03:16.7]} 25.
Ra1 {[%clk 0:02:32.4]} 25... Rxb3 {[%clk 0:03:13.3]} 26. Rxa7+ {[%clk
0:02:29.8]} 26... Kb6 {[%clk 0:03:12.4]} 27. Rxf7 {[%clk 0:02:27.2]} 27... Rxc3
{[%clk 0:03:11.2]} 28. Rxg7 {[%clk 0:02:24.6]} 28... Rc2+ {[%clk 0:03:09.1]} 29.
Nd2 {[%clk 0:02:22.3]} 29... c5 {[%clk 0:03:07.5]} 30. Rxh7 {[%clk 0:02:20.1]}
30... c4 {[%clk 0:03:06.3]} 31. Rh6 {[%clk 0:02:18]} 31... c3 {[%clk 0:03:04.9]}
32. Rxe6+ {[%clk 0:02:16]} 32... Kc5 {[%clk 0:03:04]} 33. Kd3 {[%clk 0:02:13.5]}
33... Rxd2+ {[%clk 0:03:01.9]} 34. Kxc3 {[%clk 0:02:11.9]} 34... Rxg2 {[%clk
0:03:01.3]} 35. h4 {[%clk 0:02:08]} 35... Rh2 {[%clk 0:03:00.3]} 36. Rh6 {[%clk
0:02:03.8]} 36... Rh3 {[%clk 0:02:58.8]} 37. Kd2 {[%clk 0:01:58.8]} 37... Rh2+
{[%clk 0:02:52.1]} 38. Ke1 {[%clk 0:01:53.8]} 38... Rh3 {[%clk 0:02:50.6]} 39.
Kf2 {[%clk 0:01:51.5]} 39... Rh1 {[%clk 0:02:42.6]} 40. h5 {[%clk 0:01:47.9]}
40... Rh3 {[%clk 0:02:38.6]} 41. Rh8 {[%clk 0:01:45.1]} 41... Kc6 {[%clk
0:02:36]} 42. h6 {[%clk 0:01:42.7]} 42... Kd7 {[%clk 0:02:35]} 43. h7 {[%clk
0:01:40.6]} 43... Ke7 {[%clk 0:02:34.3]} 44. Ra8 {[%clk 0:01:37.6]} 44... Ke6
{[%clk 0:02:33]} 45. h8=Q {[%clk 0:01:34]} 45... Rxh8 {[%clk 0:02:32]} 46. Rxh8
{[%clk 0:01:31.3]} 46... Kxe5 {[%clk 0:02:31.6]} 47. Ke2 {[%clk 0:01:27.9]}
47... Ke4 {[%clk 0:02:30.2]} 48. Re8+ {[%clk 0:01:25.1]} 48... Kf5 {[%clk
0:02:26.1]} 49. Kd3 {[%clk 0:01:22.7]} 49... Kf6 {[%clk 0:02:24.9]} 50. Kd4
{[%clk 0:01:20.4]} 50... Kf7 {[%clk 0:02:24.4]} 51. Rd8 {[%clk 0:01:17.9]} 51...
Ke7 {[%clk 0:02:23.7]} 52. Rxd5 {[%clk 0:01:15.7]} 52... Ke6 {[%clk 0:02:23]}
53. Ra5 {[%clk 0:01:12]} 53... Kd6 {[%clk 0:02:22.3]} 54. Ra6+ {[%clk
0:01:09.5]} 54... Kc7 {[%clk 0:02:21.5]} 55. Kd5 {[%clk 0:01:07.7]} 55... Kd7
{[%clk 0:02:20.7]} 56. Ra7+ {[%clk 0:01:05.8]} 56... Kc8 {[%clk 0:02:20.1]} 57.
Kd6 {[%clk 0:01:03.9]} 57... Kb8 {[%clk 0:02:19.5]} 58. Rh7 {[%clk 0:01:02]}
58... Ka8 {[%clk 0:02:18.5]} 59. Kc6 {[%clk 0:00:59.8]} 59... Kb8 {[%clk
0:02:17.9]} 60. Rg7 {[%clk 0:00:56.7]} 60... Ka8 {[%clk 0:02:16.5]} 61. Kb6
{[%clk 0:00:54.8]} 61... Kb8 {[%clk 0:02:15.8]} 62. e4 {[%clk 0:00:50.3]} 62...
Kc8 {[%clk 0:02:14.5]} 63. e5 {[%clk 0:00:48.4]} 63... Kd8 {[%clk 0:02:13.8]}
64. e6 {[%clk 0:00:46.5]} 64... Ke8 {[%clk 0:02:13]} 65. Kc6 {[%clk 0:00:42.6]}
65... Kd8 {[%clk 0:02:12.1]} 66. Kd6 {[%clk 0:00:34.5]} 66... Ke8 {[%clk
0:02:11.3]} 67. Rg8# {[%clk 0:00:29.1]} 1-0

[Event "Live Chess"]
[Site "Chess.com"]
[Date "2023.05.21"]
[Round "-"]
[White "EdenHazard8"]
[Black "wot-not"]
[Result "1-0"]
[WhiteElo "1988"]
[BlackElo "1546"]
[TimeControl "300"]
[EndTime "17:43:09 PDT"]
[Termination "EdenHazard8 won by resignation"]

1. e4 {[%clk 0:04:58.3]} 1... e6 {[%clk 0:04:56.8]} 2. d4 {[%clk 0:04:54.5]}
2... d5 {[%clk 0:04:55.9]} 3. exd5 {[%clk 0:04:54.4]} 3... exd5 {[%clk
0:04:54.7]} 4. Bd3 {[%clk 0:04:54.3]} 4... Nf6 {[%clk 0:04:52.5]} 5. c3 {[%clk
0:04:54.2]} 5... c5 {[%clk 0:04:51.4]} 6. Nf3 {[%clk 0:04:53.5]} 6... c4 {[%clk
0:04:50.9]} 7. Bc2 {[%clk 0:04:52.4]} 7... Bd6 {[%clk 0:04:50]} 8. O-O {[%clk
0:04:52.3]} 8... O-O {[%clk 0:04:48.7]} 9. Re1 {[%clk 0:04:52.2]} 9... Qc7
{[%clk 0:04:44]} 10. Ne5 {[%clk 0:04:49.8]} 10... Nc6 {[%clk 0:04:35.2]} 11. f4
{[%clk 0:04:47.3]} 11... h6 {[%clk 0:04:19.1]} 12. Nd2 {[%clk 0:04:44.3]} 12...
Nh7 {[%clk 0:04:16.7]} 13. Ndf3 {[%clk 0:04:40.4]} 13... f6 {[%clk 0:04:14.5]}
14. Ng6 {[%clk 0:04:38.5]} 14... Rf7 {[%clk 0:04:04.1]} 15. Re8+ {[%clk
0:04:33.9]} 15... Nf8 {[%clk 0:04:03.1]} 16. Qe2 {[%clk 0:04:11.2]} 16... Bg4
{[%clk 0:04:01.1]} 17. Rxa8 {[%clk 0:04:05.8]} 17... Kh7 {[%clk 0:03:45.6]} 18.
Nxf8+ {[%clk 0:04:02.7]} 1-0

[Event "Live Chess"]
[Site "Chess.com"]
[Date "2023.05.21"]
[Round "-"]
[White "SupremeTactician"]
[Black "stevochess11"]
[Result "1-0"]
[WhiteElo "2326"]
[BlackElo "1783"]
[TimeControl "300"]
[EndTime "17:43:46 PDT"]
[Termination "SupremeTactician won by checkmate"]

1. e4 {[%clk 0:04:58.6]} 1... c6 {[%clk 0:04:55.6]} 2. d4 {[%clk 0:04:57.8]}
2... d5 {[%clk 0:04:54.7]} 3. Nc3 {[%clk 0:04:57.3]} 3... b5 {[%clk 0:04:53.6]}
4. exd5 {[%clk 0:04:55.7]} 4... b4 {[%clk 0:04:52.6]} 5. Ne4 {[%clk 0:04:51.5]}
5... cxd5 {[%clk 0:04:51.6]} 6. Nc5 {[%clk 0:04:50.9]} 6... e6 {[%clk
0:04:50.2]} 7. Bb5+ {[%clk 0:04:49.9]} 7... Bd7 {[%clk 0:04:48.8]} 8. Nxd7
{[%clk 0:04:48.6]} 8... Nxd7 {[%clk 0:04:46.8]} 9. Nf3 {[%clk 0:04:48.3]} 9...
Nf6 {[%clk 0:04:43]} 10. Ne5 {[%clk 0:04:46.1]} 10... Rb8 {[%clk 0:04:39.6]} 11.
Qe2 {[%clk 0:04:43]} 11... Bd6 {[%clk 0:04:37.6]} 12. Nxd7 {[%clk 0:04:38.8]}
12... Nxd7 {[%clk 0:04:35.9]} 13. O-O {[%clk 0:04:37.3]} 13... O-O {[%clk
0:04:34.7]} 14. Bd3 {[%clk 0:04:36.2]} 14... f5 {[%clk 0:04:33.1]} 15. c3 {[%clk
0:04:32.9]} 15... bxc3 {[%clk 0:04:31.9]} 16. bxc3 {[%clk 0:04:32.8]} 16... Nf6
{[%clk 0:04:30.4]} 17. Qxe6+ {[%clk 0:04:31.8]} 17... Kh8 {[%clk 0:04:26.2]} 18.
Qxf5 {[%clk 0:04:31.3]} 18... Qc7 {[%clk 0:04:15]} 19. Bg5 {[%clk 0:04:29]}
19... Bxh2+ {[%clk 0:04:13.1]} 20. Kh1 {[%clk 0:04:28.4]} 20... Nh5 {[%clk
0:04:03.1]} 21. Qxh7# {[%clk 0:04:26.9]} 1-0

[Event "Live Chess"]
[Site "Chess.com"]
[Date "2023.05.21"]
[Round "-"]
[White "peter-785"]
[Black "CeladonFish"]
[Result "1-0"]
[WhiteElo "1207"]
[BlackElo "1079"]
[TimeControl "300"]
[EndTime "17:43:58 PDT"]
[Termination "peter-785 won by resignation"]

1. e4 {[%clk 0:04:57.2]} 1... d6 {[%clk 0:04:59.3]} 2. Nf3 {[%clk 0:04:56.6]}
2... Nf6 {[%clk 0:04:58.9]} 3. Nc3 {[%clk 0:04:53.1]} 3... g6 {[%clk 0:04:55.3]}
4. Bc4 {[%clk 0:04:52.5]} 4... Bg7 {[%clk 0:04:54.3]} 5. Ng5 {[%clk 0:04:49.6]}
5... O-O {[%clk 0:04:51.1]} 6. Qf3 {[%clk 0:04:35.6]} 6... Bg4 {[%clk
0:04:47.2]} 7. Qe3 {[%clk 0:04:10.9]} 7... h6 {[%clk 0:04:34.3]} 8. h3 {[%clk
0:04:07.2]} 8... Bxh3 {[%clk 0:04:18.3]} 9. Nxh3 {[%clk 0:04:02.6]} 9... c6
{[%clk 0:04:11]} 10. Bb3 {[%clk 0:03:56.2]} 10... b5 {[%clk 0:04:10.2]} 11. Qg3
{[%clk 0:03:52.7]} 11... b4 {[%clk 0:04:08.3]} 12. Ne2 {[%clk 0:03:40.8]} 12...
Nxe4 {[%clk 0:04:06.6]} 13. Qxg6 {[%clk 0:03:36.3]} 13... Qb6 {[%clk 0:04:01.4]}
14. Qxe4 {[%clk 0:03:34.2]} 1-0

[Event "Live Chess"]
[Site "Chess.com"]
[Date "2023.05.21"]
[Round "-"]
[White "raminguy"]
[Black "chessfiction"]
[Result "0-1"]
[WhiteElo "1942"]
[BlackElo "2347"]
[TimeControl "300"]
[EndTime "17:45:13 PDT"]
[Termination "chessfiction won by resignation"]

1. d4 {[%clk 0:04:55.7]} 1... d5 {[%clk 0:04:58.8]} 2. Nc3 {[%clk 0:04:54.7]}
2... e5 {[%clk 0:04:57.8]} 3. dxe5 {[%clk 0:04:53.2]} 3... d4 {[%clk 0:04:55.7]}
4. Nb5 {[%clk 0:04:50.3]} 4... Nc6 {[%clk 0:04:53.3]} 5. Nf3 {[%clk 0:04:45.7]}
5... Bc5 {[%clk 0:04:47.4]} 6. Bg5 {[%clk 0:04:41.5]} 6... Nge7 {[%clk
0:04:45.7]} 7. e3 {[%clk 0:04:39.2]} 7... Bg4 {[%clk 0:04:44]} 8. h3 {[%clk
0:04:26.5]} 8... Bxf3 {[%clk 0:04:42]} 9. Qxf3 {[%clk 0:04:24]} 9... Nxe5 {[%clk
0:04:41.1]} 10. Qxb7 {[%clk 0:04:14.9]} 10... O-O {[%clk 0:04:37.4]} 11. Qxc7
{[%clk 0:04:02.2]} 11... Bb4+ {[%clk 0:04:24.9]} 12. c3 {[%clk 0:03:58.1]} 12...
dxc3 {[%clk 0:04:24.3]} 13. bxc3 {[%clk 0:03:37.8]} 13... Qxc7 {[%clk
0:04:20.7]} 14. Nxc7 {[%clk 0:03:36.5]} 14... Bxc3+ {[%clk 0:04:20.1]} 15. Ke2
{[%clk 0:03:32.8]} 15... f6 {[%clk 0:04:16.3]} 16. Nxa8 {[%clk 0:03:21.7]} 16...
Bxa1 {[%clk 0:04:14.7]} 17. Bf4 {[%clk 0:03:02.7]} 17... Rxa8 {[%clk 0:04:12.4]}
18. f3 {[%clk 0:02:56.7]} 18... Nd5 {[%clk 0:04:08.4]} 19. Bg3 {[%clk
0:02:52.5]} 19... Rc8 {[%clk 0:04:04.2]} 20. e4 {[%clk 0:02:49.9]} 20... Rc2+
{[%clk 0:04:02.4]} 21. Kd1 {[%clk 0:02:48.3]} 21... Ne3+ {[%clk 0:04:00.5]} 0-1

[Event "Live Chess"]
[Site "Chess.com"]
[Date "2023.05.21"]
[Round "-"]
[White "laminaaprod"]
[Black "nigelst"]
[Result "1-0"]
[WhiteElo "2238"]
[BlackElo "1785"]
[TimeControl "300"]
[EndTime "17:45:22 PDT"]
[Termination "laminaaprod won by resignation"]

1. d4 {[%clk 0:04:57.8]} 1... Nf6 {[%clk 0:04:58.1]} 2. c4 {[%clk 0:04:57.4]}
2... e6 {[%clk 0:04:56.9]} 3. Nf3 {[%clk 0:04:56.3]} 3... Bb4+ {[%clk
0:04:55.2]} 4. Bd2 {[%clk 0:04:55.3]} 4... Qe7 {[%clk 0:04:51.3]} 5. Nc3 {[%clk
0:04:50.9]} 5... Nc6 {[%clk 0:04:47.3]} 6. e3 {[%clk 0:04:37.5]} 6... Bxc3
{[%clk 0:04:45.5]} 7. Bxc3 {[%clk 0:04:36.2]} 7... Ne4 {[%clk 0:04:45]} 8. Bd3
{[%clk 0:04:33.6]} 8... Nxc3 {[%clk 0:04:43.7]} 9. bxc3 {[%clk 0:04:33.5]} 9...
d6 {[%clk 0:04:41.8]} 10. d5 {[%clk 0:04:24]} 10... exd5 {[%clk 0:04:37.4]} 11.
cxd5 {[%clk 0:04:21]} 11... Ne5 {[%clk 0:04:36.9]} 12. Nxe5 {[%clk 0:04:06.5]}
12... Qxe5 {[%clk 0:04:34.7]} 13. O-O {[%clk 0:04:05.6]} 13... Qxc3 {[%clk
0:04:29.9]} 14. Rc1 {[%clk 0:03:59]} 14... Qa5 {[%clk 0:04:26.6]} 15. Qh5 {[%clk
0:03:24.5]} 15... c6 {[%clk 0:04:06.7]} 16. Qg5 {[%clk 0:02:43.6]} 16... O-O
{[%clk 0:03:55.8]} 17. Qh4 {[%clk 0:02:40.6]} 17... g6 {[%clk 0:03:51.4]} 18.
dxc6 {[%clk 0:02:39.2]} 18... bxc6 {[%clk 0:03:44.9]} 19. Rxc6 {[%clk
0:02:35.4]} 19... Qe5 {[%clk 0:03:17.1]} 20. Rfc1 {[%clk 0:02:00.5]} 20... Bf5
{[%clk 0:03:01.1]} 21. Bxf5 {[%clk 0:01:49.4]} 21... Qxf5 {[%clk 0:02:58.7]} 22.
Rxd6 {[%clk 0:01:37.5]} 22... Rab8 {[%clk 0:02:55.8]} 23. Qd4 {[%clk 0:01:25.7]}
23... Rb1 {[%clk 0:02:46.4]} 24. Qd1 {[%clk 0:01:07]} 24... Rxc1 {[%clk
0:02:38.1]} 25. Qxc1 {[%clk 0:01:05.3]} 25... Rc8 {[%clk 0:02:19.7]} 26. Qd1
{[%clk 0:00:52.4]} 26... Qc5 {[%clk 0:02:16.2]} 27. Rd8+ {[%clk 0:00:49.8]}
27... Rxd8 {[%clk 0:02:09.5]} 28. Qxd8+ {[%clk 0:00:49.7]} 28... Kg7 {[%clk
0:02:08.5]} 29. Qd2 {[%clk 0:00:43.3]} 29... f6 {[%clk 0:01:58.4]} 30. g3 {[%clk
0:00:40.8]} 30... a5 {[%clk 0:01:56.1]} 31. h4 {[%clk 0:00:40]} 31... h5 {[%clk
0:01:51.7]} 32. Qd7+ {[%clk 0:00:39]} 32... Kh6 {[%clk 0:01:49.4]} 33. Qd2
{[%clk 0:00:38.9]} 33... Kg7 {[%clk 0:01:44.1]} 34. Kh2 {[%clk 0:00:38]} 34...
a4 {[%clk 0:01:40]} 35. Qd7+ {[%clk 0:00:36.1]} 35... Kh6 {[%clk 0:01:35.5]} 36.
Qxa4 {[%clk 0:00:36]} 36... Qf5 {[%clk 0:01:18]} 37. Qf4+ {[%clk 0:00:34.6]}
37... Qxf4 {[%clk 0:01:16.8]} 38. exf4 {[%clk 0:00:33.9]} 38... Kg7 {[%clk
0:01:15.4]} 39. a4 {[%clk 0:00:33.8]} 39... Kf7 {[%clk 0:01:14.7]} 40. a5 {[%clk
0:00:33.7]} 40... Ke6 {[%clk 0:01:14.3]} 41. a6 {[%clk 0:00:33.6]} 41... Kd6
{[%clk 0:01:13.8]} 42. a7 {[%clk 0:00:33.5]} 42... Kc7 {[%clk 0:01:13.1]} 43.
a8=Q {[%clk 0:00:33.4]} 43... Kb6 {[%clk 0:01:12.7]} 44. Qg8 {[%clk 0:00:33.3]}
44... Kc5 {[%clk 0:01:11]} 45. Qxg6 {[%clk 0:00:33.2]} 45... Kd4 {[%clk
0:01:10.8]} 46. Qxh5 {[%clk 0:00:33.1]} 46... Ke4 {[%clk 0:01:09.9]} 47. Qg6+
{[%clk 0:00:32.5]} 47... Kf3 {[%clk 0:01:09.1]} 48. Qxf6 {[%clk 0:00:30.9]}
48... Ke2 {[%clk 0:01:08.3]} 49. Kg2 {[%clk 0:00:29.7]} 1-0

[Event "Live Chess"]
[Site "Chess.com"]
[Date "2023.05.21"]
[Round "-"]
[White "SupremeTactician"]
[Black "Doge_Dandolo"]
[Result "1-0"]
[WhiteElo "2328"]
[BlackElo "1943"]
[TimeControl "300"]
[EndTime "17:45:24 PDT"]
[Termination "SupremeTactician won by resignation"]

1. e4 {[%clk 0:04:59.4]} 1... c6 {[%clk 0:04:55.9]} 2. d4 {[%clk 0:04:58.6]}
2... d5 {[%clk 0:04:55.4]} 3. Nc3 {[%clk 0:04:58.5]} 3... dxe4 {[%clk
0:04:54.7]} 4. Nxe4 {[%clk 0:04:58.4]} 4... Bf5 {[%clk 0:04:54]} 5. Nc5 {[%clk
0:04:57.7]} 5... b6 {[%clk 0:04:52.8]} 6. Nb3 {[%clk 0:04:56.9]} 6... e6 {[%clk
0:04:51.5]} 7. Nf3 {[%clk 0:04:56.8]} 7... Nf6 {[%clk 0:04:49.8]} 8. Bd3 {[%clk
0:04:56.4]} 8... Bg6 {[%clk 0:04:46.7]} 9. O-O {[%clk 0:04:55.3]} 9... Be7
{[%clk 0:04:43.6]} 10. c3 {[%clk 0:04:54.5]} 10... O-O {[%clk 0:04:42.2]} 11.
Bf4 {[%clk 0:04:53.5]} 11... Nbd7 {[%clk 0:04:40.6]} 12. Re1 {[%clk 0:04:52.3]}
12... Qc8 {[%clk 0:04:38]} 13. Ne5 {[%clk 0:04:51.5]} 13... Nxe5 {[%clk
0:04:36.5]} 14. Bxe5 {[%clk 0:04:51.4]} 14... c5 {[%clk 0:04:32.8]} 15. Bxg6
{[%clk 0:04:49.5]} 15... hxg6 {[%clk 0:04:31.5]} 16. dxc5 {[%clk 0:04:48.9]}
16... Bxc5 {[%clk 0:04:30.3]} 17. Nxc5 {[%clk 0:04:47.2]} 17... Qxc5 {[%clk
0:04:29.4]} 18. Qf3 {[%clk 0:04:47]} 18... Qe7 {[%clk 0:04:24.8]} 19. Rad1
{[%clk 0:04:45.3]} 19... Rfd8 {[%clk 0:04:23.4]} 20. Bxf6 {[%clk 0:04:44.5]}
20... Qxf6 {[%clk 0:04:20.2]} 21. Qxf6 {[%clk 0:04:43.5]} 21... gxf6 {[%clk
0:04:19.1]} 22. f3 {[%clk 0:04:43.4]} 22... Kf8 {[%clk 0:04:17.6]} 23. Kf2
{[%clk 0:04:42.5]} 23... Ke7 {[%clk 0:04:16.4]} 24. Ke3 {[%clk 0:04:42.2]} 24...
Rxd1 {[%clk 0:04:11.1]} 25. Rxd1 {[%clk 0:04:42.1]} 25... Rd8 {[%clk 0:04:10.1]}
26. Rxd8 {[%clk 0:04:40.6]} 26... Kxd8 {[%clk 0:04:09.6]} 27. g4 {[%clk
0:04:39.4]} 27... Kd7 {[%clk 0:04:08.4]} 28. h4 {[%clk 0:04:38.6]} 28... f5
{[%clk 0:04:04]} 29. h5 {[%clk 0:04:35.7]} 29... gxh5 {[%clk 0:04:02.7]} 30.
gxh5 {[%clk 0:04:35.2]} 30... Ke7 {[%clk 0:04:02.4]} 31. b4 {[%clk 0:04:34.5]}
31... Kf6 {[%clk 0:04:01.5]} 32. c4 {[%clk 0:04:34]} 32... Kg5 {[%clk
0:04:00.8]} 33. c5 {[%clk 0:04:33.7]} 1-0

[Event "Live Chess"]
[Site "Chess.com"]
[Date "2023.05.21"]
[Round "-"]
[White "garyjc"]
[Black "stevochess11"]
[Result "0-1"]
[WhiteElo "1036"]
[BlackElo "1783"]
[TimeControl "300"]
[EndTime "17:45:45 PDT"]
[Termination "stevochess11 won by resignation"]

1. e4 {[%clk 0:04:56.6]} 1... c5 {[%clk 0:04:58.9]} 2. Nc3 {[%clk 0:04:54]} 2...
Nc6 {[%clk 0:04:57.9]} 3. f4 {[%clk 0:04:52.4]} 3... g6 {[%clk 0:04:56.8]} 4.
Bc4 {[%clk 0:04:46.8]} 4... Bg7 {[%clk 0:04:55.3]} 5. Nf3 {[%clk 0:04:45.2]}
5... e6 {[%clk 0:04:53.7]} 6. O-O {[%clk 0:04:42.4]} 6... Nge7 {[%clk
0:04:52.5]} 7. d3 {[%clk 0:04:40.9]} 7... O-O {[%clk 0:04:48.8]} 8. Qe1 {[%clk
0:04:29.8]} 8... Nd4 {[%clk 0:04:47.1]} 9. Nxd4 {[%clk 0:04:23.3]} 9... Bxd4+
{[%clk 0:04:44.9]} 10. Kh1 {[%clk 0:04:16]} 10... a6 {[%clk 0:04:43.6]} 11. Ne2
{[%clk 0:04:12.9]} 11... Bg7 {[%clk 0:04:39.2]} 12. f5 {[%clk 0:04:06.7]} 12...
d5 {[%clk 0:04:37.3]} 13. Ng3 {[%clk 0:04:06.6]} 13... dxc4 {[%clk 0:04:35.8]}
14. fxg6 {[%clk 0:03:56.9]} 14... hxg6 {[%clk 0:04:34]} 15. b3 {[%clk
0:03:48.9]} 15... Bxa1 {[%clk 0:04:30.8]} 0-1